bitfinex/quotes_ETHUSD_20260207
["timestamp","ask_amount","ask_price","bid_price","bid_amount"]
[1770467949472,0.66823635,2054.4,2053.6,1.21737011]
[1770467949799,1.88513818,2054.4,2053.5,1.21739349]
[1770467949979,1.88513818,2054.4,2053.5,1.21742569]
[1770467950179,0.05438813,2054.1,2053.3,1.21750706]
[1770467950495,0.05438813,2054.1,2053.3,1.21754073]
[1770467950697,0.05438813,2053.8,2052.3,0.1024]
[1770467950876,0.05438813,2053.1,2052.6,4.8716685]
[1770467951079,0.05438813,2053.1,2052.6,1.21796745]
[1770467951290,0.05438813,2053.8,2052.6,1.21796745]
[1770467951500,0.05438813,2053.5,2052.6,2.95884043]
[1770467951679,0.05438813,2053.5,2052.6,1.21796745]
[1770467951879,0.05438813,2053.2,2052.6,1.21796745]
[1770467952081,0.05438813,2053.5,2052.6,1.21796745]
[1770467952399,1.21699716,2054.3,2052.7,1.74087298]
[1770467952596,0.05438813,2053.8,2052.7,1.74087298]
[1770467952777,1.27147809,2054.1,2052.9,1.21778946]
[1770467952778,1.27152018,2054.1,2052.9,1.21778946]
[1770467953099,0.05438813,2053.8,2052.9,1.21778946]
[1770467953280,0.05438813,2053.5,2052.9,1.21778946]
[1770467953481,0.05438813,2053.5,2052.8,0.29588404]
[1770467953693,0.05438813,2053.5,2052.8,1.51370904]
[1770467954201,0.05438813,2053.5,2052.6,4.87139516]
[1770467954202,0.05438813,2053.2,2052.6,4.87180606]
[1770467954392,0.05438813,2053.2,2052.6,1.21792585]
[1770467954587,0.05438813,2053.2,2052.7,1.21787711]
[1770467954799,0.05438813,2053.2,2052.3,1.21814549]
[1770467955203,0.05438813,2052.9,2052.2,1.21816704]
[1770467955779,0.05438813,2052.6,2052.2,1.21816704]
[1770467956010,0.05438813,2052.9,2052.2,1.21816704]
[1770467956185,0.05438813,2052.9,2052.3,0.60909865]
[1770467956380,0.05438813,2052.9,2052.2,1.21816704]
[1770467956573,0.05438813,2053.2,2052.2,1.21816704]
[1770467956802,0.05438813,2053.2,2052.1,1.74087298]
[1770467956981,1.2718228,2053.5,2052.1,1.74087298]
[1770467957185,1.2718228,2053.5,2052.2,0.66136924]
[1770467957383,1.21717252,2054.0,2052.4,1.74087298]
[1770467957587,0.05438813,2053.8,2052.4,1.74087298]
[1770467957788,1.27150791,2054.1,2052.4,1.74087298]
[1770467957989,0.05438813,2053.8,2052.4,1.74087298]
[1770467958189,0.05438813,2053.8,2052.5,3.33348079]
[1770467958595,0.05438813,2053.5,2052.5,1.59260781]
[1770467958904,1.37378328,2054.3,2053.0,10.78220512]
[1770467959075,0.05438813,2053.4,2052.9,0.001]
[1770467959499,0.04865813,2053.4,2052.9,0.001]
[1770467959807,0.05438813,2053.1,2052.6,0.001]
[1770467960790,0.05438813,2052.8,2052.6,0.001]
[1770467960992,0.05438813,2052.8,2052.2,0.66136924]
[1770467961191,0.05438813,2053.1,2052.2,1.21817241]
[1770467962001,0.05438813,2052.8,2052.2,1.21817241]
[1770467962190,0.05438813,2053.1,2052.2,1.21817241]
[1770467962910,0.05438813,2052.6,2051.9,1.21838296]
[1770467963215,1.27218611,2052.9,2051.9,1.21838296]
[1770467963216,0.05438813,2052.9,2051.9,1.21838296]
[1770467963415,0.05438813,2052.6,2051.9,1.85023897]
[1770467964331,0.05438813,2052.6,2051.8,0.22644812]
[1770467964689,0.05438813,2052.6,2051.6,1.21854676]
[1770467964890,0.05438813,2052.6,2051.2,15.65737915]
[1770467964891,0.05438813,2052.3,2051.3,1.21873933]
[1770467965218,1.27255109,2052.3,2051.3,1.21873933]
[1770467965429,0.05438813,2052.3,2051.3,1.21873933]
[1770467965629,1.27220604,2052.9,2051.4,2.35026432]
[1770467966111,0.05438813,2052.6,2051.4,2.35026432]
[1770467966986,1.27238088,2052.6,2051.5,1.21862052]
[1770467967190,0.05438813,2052.6,2051.5,1.21862052]
[1770467967417,1.27236225,2052.6,2051.5,1.21862052]
[1770467967630,1.27218296,2052.9,2051.7,1.74087298]
[1770467967993,0.05438813,2052.9,2051.7,1.74087298]
[1770467968191,0.05438813,2052.6,2051.6,0.84433669]
[1770467969319,0.05438813,2052.3,2051.4,0.60939134]
[1770467969654,0.05438813,2052.3,2050.8,0.1373485]
[1770467969655,0.05438813,2051.7,2050.8,0.1373485]
[1770467969794,3.405,2052.4,2048.7,1.46429557]
[1770467969795,0.05438813,2052.5,2050.7,1.74087298]
[1770467969994,0.05438813,2052.2,2050.9,12.5230781]
[1770467970236,0.42350239,2052.1,2051.1,1.74087298]
[1770467970527,1.21802491,2052.6,2051.2,1.74087298]
[1770467970694,0.42331608,2052.5,2051.2,1.74087298]
[1770467970894,1.32030812,2052.8,2051.5,1.74087298]
[1770467971096,1.6412212,2052.7,2051.6,1.21856112]
[1770467971294,1.08483845,2052.6,2051.7,0.78336786]
[1770467971529,0.423271,2052.5,2051.5,2.95948461]
[1770467971834,0.66152537,2052.6,2051.5,2.95948461]
[1770467972120,0.42362252,2052.5,2051.5,2.95948461]
[1770467972422,0.42404739,2052.4,2051.5,1.21861163]
[1770467972620,10.78220512,2052.5,2051.2,1.21875935]
[1770467972839,10.78220512,2052.5,2050.3,4.87716902]
[1770467972840,1.62283858,2052.4,2051.0,4.87561525]
[1770467973021,0.4240774,2052.3,2051.1,1.21882591]
[1770467973317,1.21820485,2052.2,2050.8,2.95990945]
[1770467973528,0.47846553,2052.1,2050.8,2.95990945]
[1770467973705,0.4240774,2052.0,2050.9,1.74087298]
[1770467973901,0.4240774,2051.9,2051.0,0.29599095]
[1770467974127,0.4240774,2051.8,2051.0,0.29599095]
[1770467974328,0.42508894,2051.7,2051.0,0.29599095]
[1770467974503,0.05438813,2052.1,2051.0,0.29599095]
[1770467974704,0.42508485,2052.0,2051.0,2.03686393]
[1770467974905,1.22000059,2052.6,2051.3,1.74087298]
[1770467975121,1.21808614,2052.4,2051.4,1.21867992]
[1770467975330,0.42498944,2052.3,2051.3,2.95957801]
[1770467976846,0.42498944,2052.3,2051.1,6.15686425]
[1770467976847,0.47937757,2052.3,2051.1,6.1572599]
[1770467977050,0.42498944,2052.2,2051.2,1.21875446]
[1770467977330,1.21832358,2052.0,2050.9,1.21897703]
[1770467977533,0.42498944,2051.9,2050.9,1.21897703]
[1770467977836,0.42498944,2051.9,2051.0,1.83736051]
[1770467978032,0.42498944,2051.8,2051.0,1.83736051]
[1770467978330,0.42498944,2051.7,2051.0,2.63058508]
[1770467978536,0.42498944,2051.6,2051.0,2.63058508]
[1770467978710,1.21830704,2052.1,2051.0,2.63058508]
[1770467978911,0.42692103,2052.0,2051.0,2.63058508]
[1770467979230,0.42692103,2051.9,2051.0,0.79322457]
[1770467979443,0.42692103,2051.8,2051.1,1.21885817]
[1770467979622,0.42692103,2051.8,2051.0,1.21888109]
[1770467980224,0.42692103,2051.7,2050.9,1.21894036]
[1770467980425,0.42692103,2051.6,2050.8,1.21899812]
[1770467980621,0.42692103,2051.5,2050.6,6.7139301]
[1770467980822,0.42692103,2051.4,2050.7,1.21906111]
[1770467981026,0.42692103,2051.3,2050.6,1.21913625]
[1770467981228,0.05438813,2051.8,2050.2,6.71491134]
[1770467981229,0.42692103,2051.2,2050.2,6.71491134]
[1770467981445,4.92817397,2051.8,2050.6,1.21912089]
[1770467981446,0.42692103,2051.1,2050.6,1.21912089]
[1770467981618,0.05438813,2051.8,2050.6,1.21912089]
[1770467981619,1.21838296,2051.9,2050.7,1.83736051]
[1770467981942,0.05438813,2051.8,2050.8,1.38386865]
[1770467982154,0.05438813,2051.5,2050.5,3.05653297]
[1770467982346,11.88205572,2051.6,2050.5,1.21921291]
[1770467982547,0.05438813,2051.3,2050.6,1.21912836]
[1770467982721,0.32942197,2051.5,2050.6,3.05648887]
[1770467983044,0.32942197,2051.5,2050.6,1.21912836]
[1770467983242,0.32942197,2051.5,2050.2,1.83736051]
[1770467983243,0.05438813,2051.4,2050.2,1.83736051]
[1770467983415,1.27310638,2051.4,2050.3,4.87718616]
[1770467983622,1.27310638,2051.4,2050.3,2.01272179]
[1770467983823,0.05438813,2051.1,2050.3,2.01272179]
[1770467984022,0.05438813,2051.0,2050.2,1.21939294]
[1770467984218,1.27310638,2051.4,2050.2,1.21938703]
[1770467984919,0.05438813,2051.2,2050.2,1.21938703]
[1770467985327,1.21885817,2051.1,2050.2,1.21938703]
[1770467985928,1.21885817,2051.1,2050.1,4.87780903]
[1770467985929,1.21885817,2051.1,2050.1,1.21944494]
[1770467986122,0.05438813,2050.9,2050.1,1.21944494]
[1770467986568,0.05438813,2050.9,2050.1,1.21941445]
[1770467986759,0.6148679,2051.0,2050.1,1.21941445]
[1770467986932,1.2732235,2051.2,2050.4,0.001]
[1770467987430,0.05438813,2051.2,2050.4,0.001]
[1770467987629,1.27319728,2051.2,2050.4,0.001]
[1770467988759,1.27319728,2051.2,2049.3,1.83736051]
[1770467988760,0.05438813,2050.9,2049.3,1.83736051]
[1770467988936,12.0554024,2051.2,2049.9,4.87827447]
[1770467989133,0.05438813,2050.9,2050.0,1.21949161]
[1770467989349,0.72716468,2051.1,2050.0,1.21949161]
[1770467989550,1.2189176,2051.0,2050.0,1.21949161]
[1770467990228,1.2189176,2051.0,2049.9,1.2195285]
[1770467990428,0.68216359,2050.9,2049.9,2.01305986]
[1770467990963,0.73655172,2050.9,2049.9,2.01309733]
[1770467991350,0.73655172,2050.9,2049.9,3.85045784]
[1770467991667,0.73655172,2050.9,2049.9,3.85045871]
[1770467991668,1.21903647,2050.8,2049.9,3.85045871]
[1770467991958,1.95557058,2050.9,2049.9,3.05692735]
[1770467992346,0.72716468,2051.1,2050.0,1.83736051]
[1770467992546,1.21882612,2051.2,2050.0,1.83736051]
[1770467992864,1.27321425,2051.2,2050.0,1.83736051]
[1770467993741,1.63825984,2051.1,2050.1,1.2194527]
[1770467993936,0.41935956,2051.0,2050.1,1.2194527]
[1770467994151,0.41935956,2050.9,2050.2,0.7934624]
[1770467994449,0.41935956,2050.8,2050.2,0.7934624]
[1770467994642,0.41935956,2050.7,2050.3,1.83736051]
[1770467994841,0.32783487,2051.4,2050.6,1.83736051]
[1770467995030,1.54654154,2051.4,2050.2,13.41302803]
[1770467995233,0.05438813,2051.3,2050.3,1.46324807]
[1770467995458,1.54652609,2051.4,2050.3,1.83736051]
[1770467995660,1.54652609,2051.4,2050.4,1.21927428]
[1770467995863,1.54652609,2051.4,2049.9,1.21953356]
[1770467995864,0.05438813,2050.8,2049.9,1.21953356]
[1770467996037,0.05438813,2050.5,2049.8,4.87838582]
[1770467996242,0.05438813,2050.8,2049.6,6.71633668]
[1770467996558,0.05438813,2050.8,2050.0,1.21948535]
[1770467996760,0.05438813,2050.5,2049.7,1.89131828]
[1770467996932,0.05438813,2050.8,2049.9,1.21952413]
[1770467997257,0.05438813,2050.8,2049.5,4.87912801]
[1770467997258,0.05438813,2050.2,2049.0,6.7177608]
[1770467997568,0.05438813,2050.5,2049.4,1.21986022]
[1770467997783,1.21927428,2050.4,2049.4,1.21986022]
[1770467997934,0.61507596,2050.3,2049.5,0.79366977]
[1770467998262,0.05438813,2050.2,2049.3,3.05726063]
[1770467998966,0.05438813,2050.2,2049.3,1.83736051]
[1770467999155,0.05438813,2050.2,2049.3,3.05727819]
[1770467999357,0.05438813,2050.2,2049.3,1.21991768]
[1770468000281,1.2194527,2050.1,2049.0,1.22010736]
[1770468000458,1.2194527,2050.1,2049.1,0.79379084]
[1770468000972,0.61507596,2050.3,2049.2,1.83736051]
[1770468001139,0.002,2050.7,2049.9,0.001]
[1770468001541,0.002,2050.7,2049.9,1.83836051]
[1770468002077,0.002,2050.7,2050.0,1.83736051]
[1770468002368,0.002,2050.7,2050.1,3.05681321]
[1770468003551,0.002,2050.7,2049.9,0.001]
[1770468003758,0.002,2050.7,2050.0,1.21947932]
[1770468003972,0.002,2050.7,2049.9,1.22052703]
[1770468004178,0.002,2050.7,2049.9,2.01417665]
[1770468004349,1.27358757,2050.6,2049.7,1.21967272]
[1770468004544,0.05438813,2050.6,2049.7,4.87868144]
[1770468004770,1.22109993,2050.7,2049.9,1.21956211]
[1770468005044,0.6097253,2050.6,2049.9,1.21956211]
[1770468005357,0.6097253,2050.6,2049.8,1.2196006]
[1770468005358,0.05438813,2050.6,2049.8,1.2196006]
[1770468005674,0.05438813,2050.6,2049.8,1.21959862]
[1770468005976,0.05438813,2050.3,2049.4,4.87933636]
[1770468006179,0.05438813,2050.3,2049.6,1.21973953]
[1770468006470,1.27377721,2050.3,2049.5,0.48793364]
[1770468006656,1.27377721,2050.3,2049.4,1.21982561]
[1770468006858,0.40554378,2050.2,2049.3,1.21988887]
[1770468007078,0.40554378,2050.1,2049.4,1.2198688]
[1770468007258,0.40554378,2050.0,2049.5,1.21980502]
[1770468007458,0.40554378,2049.9,2049.4,1.21982784]
[1770468007660,0.40554378,2049.8,2049.5,1.21980763]
[1770468007952,0.40554378,2049.7,2049.4,1.21982452]
[1770468008162,0.65565,2050.2,2049.4,1.21982714]
[1770468008479,0.05438813,2050.0,2048.7,1.74564382]
[1770468008646,1.27384083,2050.1,2049.2,1.21995932]
[1770468008851,1.27384083,2050.1,2049.1,1.22001374]
[1770468009075,1.27384083,2050.1,2049.2,1.21997876]
[1770468009575,0.002,2050.7,2049.4,1.74564382]
[1770468009751,1.22110538,2050.7,2049.6,1.74564382]
[1770468009946,0.05438813,2050.6,2049.6,1.74564382]
[1770468010157,1.22109767,2050.7,2049.6,1.74564382]
[1770468010379,0.002,2050.7,2049.7,1.21969068]
[1770468010673,0.61735856,2050.7,2049.8,0.78440972]
[1770468010977,0.002,2050.7,2049.8,2.69830217]
[1770468011674,0.05438813,2050.6,2049.6,1.21970618]
[1770468012480,0.002,2050.7,2049.6,1.21970618]
[1770468012481,0.002,2050.7,2049.6,2.970943]
[1770468012689,0.002,2050.7,2049.7,1.75123682]
[1770468014375,0.002,2050.7,2050.0,1.75123682]
[1770468014577,0.002,2050.7,2050.2,1.75123682]
[1770468014748,0.002,2050.7,2050.3,0.29706895]
[1770468015380,0.002,2050.9,2050.3,2.04830577]
[1770468015873,0.32783487,2051.4,2050.3,2.04830577]
[1770468016082,1.21802679,2052.5,2051.0,1.75123682]
[1770468016275,1.54578435,2052.5,2051.0,1.75123682]
[1770468016484,0.64196964,2052.4,2051.2,1.75123682]
[1770468016684,1.86007562,2052.4,2051.3,1.21873933]
[1770468016863,0.64196964,2052.4,2051.3,1.21873933]
[1770468017069,0.32775756,2052.5,2051.4,1.75123682]
[1770468017387,1.54578957,2052.5,2051.3,1.21873933]
[1770468017557,0.32775756,2052.5,2051.4,1.75123682]
[1770468018102,0.32775756,2052.5,2051.6,1.75123682]
[1770468018659,0.002,2052.6,2051.8,1.75123682]
[1770468018861,0.002,2052.6,2051.9,2.04821067]
[1770468019708,0.002,2052.6,2052.1,1.75123682]
[1770468019892,1.27173916,2053.7,2052.1,1.75123682]
[1770468020095,2.00539357,2054.2,2052.4,1.75123682]
[1770468020096,0.38924633,2053.6,2052.4,1.75123682]
[1770468020263,0.38924633,2053.5,2052.4,1.75123682]
[1770468020463,0.05438813,2053.9,2052.5,3.0950491]
[1770468020667,0.05438813,2053.9,2052.6,1.21796745]
[1770468020668,0.05438813,2053.6,2052.6,1.21796745]
[1770468020988,0.38827612,2053.5,2052.6,2.96920427]
[1770468021197,0.05438813,2053.6,2052.6,2.96920427]
[1770468021895,0.05438813,2053.6,2052.4,4.87186982]
[1770468021896,0.05438813,2053.3,2052.4,1.21804509]
[1770468022068,0.38760212,2053.2,2052.5,1.21801985]
[1770468022388,0.05438813,2053.3,2052.4,1.21804755]
[1770468022589,0.38722668,2053.2,2052.4,1.21804755]
[1770468022764,0.05438813,2053.3,2052.1,1.75123682]
[1770468022962,0.05438813,2053.0,2051.9,1.51532278]
[1770468023170,0.05438813,2053.0,2051.9,1.21834893]
[1770468024273,0.05438813,2052.9,2051.9,1.21834893]
[1770468024670,0.05438813,2052.9,2051.6,6.62546426]
[1770468024671,0.05438813,2052.9,2051.6,1.75123682]
[1770468024877,0.05438813,2052.6,2051.6,2.96977283]
[1770468025292,0.05438813,2052.6,2051.6,4.2416058]
[1770468025768,1.21782862,2052.9,2051.7,1.75123682]
[1770468025966,1.21761153,2053.2,2051.7,1.75123682]
[1770468026297,0.05438813,2053.0,2051.7,1.75123682]
[1770468026469,0.38666075,2052.9,2051.7,1.75123682]
[1770468026670,0.05438813,2053.0,2051.8,0.42416058]
[1770468026871,1.60433778,2052.9,2051.9,1.21838296]
[1770468027185,1.27212416,2053.0,2051.9,1.21838296]
[1770468027369,0.05438813,2052.4,2051.5,1.21860107]
[1770468027568,0.05438813,2052.4,2051.9,0.001]
[1770468028493,0.05438813,2052.4,2051.0,1.75123682]
[1770468028679,0.05438813,2052.1,2051.0,1.75123682]
[1770468028883,0.05438813,2052.1,2051.1,1.21885817]
[1770468029877,1.27265466,2052.1,2051.1,1.21885817]
[1770468030077,0.38689096,2052.0,2051.0,1.21891461]
[1770468030284,0.38689096,2051.9,2051.0,1.21891461]
[1770468030483,0.05438813,2051.8,2051.0,1.21891461]
[1770468030689,0.05438813,2051.8,2050.6,1.75123682]
[1770468030886,1.21850173,2051.7,2050.7,1.21909591]
[1770468031091,0.61468968,2051.6,2050.7,1.21909591]
[1770468031488,1.27286925,2051.8,2050.7,1.21909591]
[1770468033601,0.3872385,2051.7,2050.7,1.21909591]
[1770468033895,0.3872385,2051.6,2050.7,1.21909591]
[1770468034201,0.38734501,2051.5,2050.7,1.21909591]
[1770468034410,0.05438813,2051.7,2050.6,1.21911157]
[1770468034612,0.38735649,2051.6,2050.6,1.21911157]
[1770468034917,0.05438813,2051.4,2050.6,1.21911157]
[1770468035102,1.21873933,2051.3,2050.2,4.87735318]
[1770468035408,1.21873933,2051.3,2050.2,1.21939322]
[1770468035702,0.05438813,2051.1,2050.2,1.21939322]
[1770468036107,0.05438813,2051.1,2050.1,2.97064881]
[1770468036278,0.05438813,2051.1,2050.1,3.75551665]
[1770468036807,0.38768489,2051.0,2050.1,2.00427983]
[1770468037009,0.38768489,2051.0,2049.6,0.001]
[1770468037010,0.05438813,2050.6,2049.6,0.001]
[1770468037309,1.27354352,2050.6,2049.6,1.93550675]
[1770468038102,1.27354352,2050.6,2049.6,0.001]
[1770468038310,0.05438813,2050.3,2049.6,0.001]
[1770468039203,1.21939322,2050.2,2049.6,0.001]
[1770468039408,0.615116,2050.1,2049.6,0.001]
[1770468039983,4.87588634,2051.0,2049.8,0.001]
[1770468040301,0.002,2050.4,2049.8,0.001]
[1770468040877,0.002,2050.4,2049.8,1.93550675]
[1770468041085,0.002,2050.4,2049.9,1.21957168]
[1770468041512,0.002,2050.4,2050.0,1.93450675]
[1770468041689,7.46143662,2051.7,2050.2,1.93450675]
[1770468041690,2.05942707,2051.7,2050.2,1.93450675]
[1770468042022,0.38793096,2051.6,2050.4,1.93450675]
[1770468042213,0.05438813,2052.1,2050.7,1.93450675]
[1770468042403,0.38805714,2052.0,2050.7,1.93450675]
[1770468042582,0.38805714,2051.9,2050.7,1.93450675]
[1770468042918,0.05438813,2052.4,2051.0,1.93450675]
[1770468043085,1.66054994,2052.3,2051.0,1.93450675]
[1770468043290,0.05438813,2052.0,2051.0,1.21890855]
[1770468043488,0.38798618,2051.9,2051.0,1.21890855]
[1770468043702,0.38798618,2051.9,2050.9,1.21894115]
[1770468043909,0.38798618,2051.9,2051.0,1.21890801]
[1770468044109,0.05438813,2051.7,2050.9,1.21895994]
[1770468044414,0.38798618,2051.6,2050.9,1.2189422]
[1770468044798,0.05438813,2052.1,2051.0,1.21889937]
[1770468044997,0.05438813,2052.3,2051.0,1.21889937]
[1770468045312,1.27256947,2052.3,2051.0,1.21889937]
[1770468045487,0.05438813,2052.0,2051.0,1.21889937]
[1770468046421,0.05438813,2052.0,2050.1,5.19308299]
[1770468046422,0.05438813,2051.1,2050.3,1.21929068]
[1770468046716,0.05438813,2051.1,2050.2,4.87740263]
[1770468046717,0.05438813,2051.1,2050.4,1.21927331]
[1770468046897,0.05438813,2051.1,2050.2,4.87748345]
[1770468047225,1.27330067,2051.1,2050.3,1.21931471]
[1770468047603,0.05438813,2050.8,2049.8,0.001]
[1770468047804,0.05438813,2050.8,2050.0,1.2194829]
[1770468048117,0.05438813,2050.8,2050.0,1.21951147]
[1770468048315,0.05438813,2050.8,2049.9,1.21953288]
[1770468048522,0.05438813,2050.5,2049.8,1.22059195]
[1770468048822,0.05438813,2050.5,2049.8,1.22058766]
[1770468048998,0.05438813,2050.8,2049.8,0.001]
[1770468049325,1.21909591,2050.7,2049.8,0.001]
[1770468049623,0.61498677,2050.6,2049.8,0.001]
[1770468050198,0.05438813,2050.5,2049.8,0.001]
[1770468051639,0.05438813,2050.2,2049.8,0.001]
[1770468052496,0.05438813,2050.5,2049.8,0.001]
[1770468052693,0.05438813,2050.8,2049.8,0.001]
[1770468052893,1.27344511,2050.8,2049.8,0.001]
[1770468053093,0.61493562,2050.7,2049.8,0.001]
[1770468053695,0.002,2050.4,2049.8,0.001]
[1770468054904,0.05438813,2050.2,2049.8,0.001]
[1770468055320,0.002,2050.4,2049.8,0.001]
[1770468056706,0.38098382,2050.3,2049.8,0.001]
[1770468057032,0.38098382,2050.2,2049.8,0.001]
[1770468057214,0.002,2050.4,2049.8,0.001]
[1770468057601,0.66640009,2050.4,2049.8,0.001]
[1770468057809,0.002,2050.4,2049.8,0.001]
[1770468058019,0.002,2050.4,2049.8,1.93550675]
[1770468058228,0.1024,2051.4,2049.9,1.93450675]
[1770468058527,1.80004976,2051.9,2050.2,1.93450675]
[1770468058528,0.002,2051.2,2050.2,1.93450675]
[1770468058705,0.002,2051.6,2050.2,1.93450675]
[1770468059028,0.61143581,2051.6,2050.2,1.93450675]
[1770468059537,0.61143581,2051.6,2050.4,1.93450675]
[1770468059707,0.61143581,2051.6,2050.5,3.15372157]
[1770468059708,0.002,2051.6,2050.5,3.15372157]
[1770468059907,0.002,2051.6,2050.6,1.93450675]
[1770468061315,0.05438813,2051.5,2050.6,1.93450675]
[1770468061735,0.05438813,2051.2,2050.6,1.93450675]
[1770468061943,0.05638813,2051.4,2050.8,1.21903647]
[1770468062252,0.05438813,2051.4,2050.8,1.21903647]
[1770468062409,0.002,2051.3,2050.8,1.21903647]
[1770468065407,0.05438813,2051.7,2050.8,1.21903647]
[1770468065610,0.05438813,2052.0,2050.9,1.93450675]
[1770468065915,0.05438813,2051.7,2051.0,0.31535432]
[1770468066119,0.05438813,2051.4,2051.0,1.53426322]
[1770468066350,0.05438813,2051.4,2050.8,4.8760831]
[1770468066524,0.05438813,2051.4,2050.9,1.21893646]
[1770468066835,0.05438813,2051.4,2050.9,1.21897675]
[1770468067039,0.05438813,2051.4,2049.9,18.53978257]
[1770468067040,0.05438813,2051.1,2049.9,18.53978257]
[1770468067212,0.05438813,2050.8,2050.0,1.85507826]
[1770468067412,0.05438813,2051.1,2050.1,1.97480336]
[1770468067620,0.05638813,2051.4,2050.1,1.97480336]
[1770468068021,0.05638813,2051.4,2050.3,1.97480336]
[1770468068022,0.002,2051.4,2050.3,1.97480336]
[1770468068237,1.22069096,2051.4,2050.3,1.97480336]
[1770468068536,0.002,2051.4,2050.3,1.97480336]
[1770468068738,0.61169486,2051.4,2050.4,0.31941966]
[1770468068924,0.002,2051.4,2050.5,1.97480336]
[1770468069124,1.21790812,2052.7,2051.2,13.6616893]
[1770468069322,0.05438813,2052.0,2050.7,1.97480336]
[1770468069628,0.3807451,2051.9,2050.7,1.97480336]
[1770468069950,0.05438813,2052.6,2050.6,11.68688594]
[1770468069951,0.3807451,2051.8,2051.1,1.21885817]
[1770468070119,0.05438813,2052.1,2051.2,1.89799792]
[1770468070317,0.05438813,2051.5,2051.1,1.21885817]
[1770468070515,0.05438813,2051.8,2051.1,1.89799792]
[1770468070744,0.05438813,2051.7,2051.1,1.89799792]
[1770468070946,0.05438813,2051.7,2051.2,1.48037586]
[1770468071245,0.05438813,2052.1,2051.2,1.48037586]
[1770468071411,0.3804332,2052.0,2051.3,1.89799792]
[1770468071742,0.05438813,2052.1,2051.3,1.89799792]
[1770468072040,0.05438813,2052.6,2051.5,1.89799792]
[1770468072219,0.38038933,2052.5,2051.6,0.31166778]
[1770468072419,0.38038933,2052.4,2051.6,2.2096657]
[1770468072618,0.43477746,2052.3,2051.6,0.31166778]
[1770468072817,0.38038933,2052.2,2051.4,3.11667784]
[1770468073020,0.05438813,2051.6,2050.6,1.89799792]
[1770468073241,0.38040515,2051.5,2050.9,1.21895002]
[1770468073448,0.05438813,2051.3,2050.9,4.87585661]
[1770468073742,0.05438813,2051.3,2051.0,1.21887537]
[1770468073945,1.27241492,2052.5,2051.2,4.87495734]
[1770468074129,0.05438813,2052.1,2051.2,1.65618433]
[1770468074319,0.38043314,2052.0,2051.3,1.89799792]
[1770468074519,0.05438813,2052.6,2051.2,1.65618433]
[1770468074718,0.38027092,2052.5,2051.3,1.89799792]
[1770468074926,0.38027092,2052.4,2051.3,1.89799792]
[1770468075156,1.21787785,2052.8,2051.5,1.89799792]
[1770468075328,0.3802296,2052.7,2051.5,1.89799792]
[1770468075529,0.3802296,2052.6,2051.5,1.89799792]
[1770468075729,0.3802296,2052.5,2051.5,1.89799792]
[1770468075930,1.21780869,2052.9,2051.5,1.89799792]
[1770468076262,0.380024,2052.8,2051.9,1.89799792]
[1770468076425,1.21761153,2053.2,2051.9,1.89799792]
[1770468076627,0.43408371,2053.0,2051.7,1.21850173]
[1770468076827,0.05438813,2052.7,2051.6,2.61255986]
[1770468077027,0.05438813,2052.3,2051.6,2.61255986]
[1770468077429,0.37964543,2052.2,2051.4,5.23006115]
[1770468077726,0.05438813,2052.7,2051.6,1.21855108]
[1770468078025,0.05438813,2052.3,2051.6,1.21855108]
[1770468078225,0.05438813,2052.2,2051.5,4.87447262]
[1770468078451,0.05438813,2052.5,2051.5,4.87447262]
[1770468078646,0.3795505,2052.4,2051.6,0.64485114]
[1770468078848,0.66881432,2052.5,2051.6,0.64485114]
[1770468079039,0.37955041,2052.4,2051.6,0.64485114]
[1770468079227,0.05438813,2052.2,2051.6,0.64485114]
[1770468079425,0.05438813,2051.7,2050.8,1.21898568]
[1770468079630,0.37964528,2051.6,2050.9,1.21897463]
[1770468079925,0.37964528,2051.5,2050.6,1.89799792]
[1770468080127,1.21856112,2051.6,2050.7,1.21909591]
[1770468080350,0.37968376,2051.5,2050.7,1.53080529]
[1770468080654,1.21856112,2051.6,2050.7,1.53080529]
[1770468080867,0.37977334,2051.5,2050.7,1.53080529]
[1770468081177,0.05438813,2051.3,2050.0,0.001]
[1770468081357,0.37984091,2051.2,2050.4,1.21922347]
[1770468081555,0.05438813,2051.0,2050.2,0.001]
[1770468081852,0.37984091,2050.9,2050.2,1.22034814]
[1770468082053,0.37984091,2050.9,2050.2,0.001]
[1770468082356,1.21903647,2050.8,2050.2,0.001]
[1770468082560,0.37984091,2050.7,2050.2,0.001]
[1770468084463,1.5989537,2050.7,2050.2,0.001]
[1770468084761,0.37984091,2050.6,2050.2,0.001]
[1770468084971,1.21907689,2050.8,2050.2,0.001]
[1770468085152,0.38043288,2050.7,2050.2,0.001]
[1770468085472,0.38043288,2050.6,2050.2,0.001]
[1770468085776,1.21899855,2050.9,2050.2,0.001]
[1770468085992,0.38065689,2050.8,2050.2,0.001]
[1770468086272,0.38065689,2050.7,2050.2,0.001]
[1770468086472,1.21862052,2051.5,2050.2,1.89899792]
[1770468086660,0.05438813,2051.0,2050.2,0.001]
[1770468087252,0.05438813,2051.0,2050.2,0.61092635]
[1770468087944,0.05438813,2051.3,2050.2,0.61092635]
[1770468088570,1.21879875,2051.2,2050.3,1.21933375]
[1770468089276,1.21862052,2051.5,2050.3,1.21933375]
[1770468089577,0.05438813,2051.3,2050.3,1.21933375]
[1770468089750,0.05438813,2051.3,2050.4,0.67075951]
[1770468090460,1.21862052,2051.5,2050.4,1.88998347]
[1770468090781,0.05438813,2051.3,2050.4,1.88998347]
[1770468091979,1.21862052,2051.5,2050.4,1.88998347]
[1770468092179,1.27298799,2051.6,2050.4,3.78798139]
[1770468092480,0.61470627,2051.5,2050.5,0.86652589]
[1770468092683,1.8333782,2051.5,2050.6,1.21915536]
[1770468094690,0.05438813,2051.3,2050.6,1.21915536]
[1770468094895,0.002,2051.1,2050.6,1.21915536]
[1770468096675,0.002,2051.1,2050.5,2.08571149]
[1770468096874,0.05438813,2051.0,2050.4,0.67175951]
[1770468097098,0.05438813,2051.0,2050.5,1.21920628]
[1770468097270,0.05438813,2051.0,2050.4,1.2202336]
[1770468097474,0.002,2051.1,2050.5,1.21918491]
[1770468097902,0.002,2051.1,2050.4,1.22024545]
[1770468098109,0.002,2051.1,2050.5,1.21919347]
[1770468098589,0.36747162,2051.0,2050.4,0.001]
[1770468098794,0.36747162,2050.9,2050.4,0.87060493]
[1770468099111,0.36747162,2050.8,2050.4,0.87060493]
[1770468099309,0.002,2051.1,2050.4,0.87060493]
[1770468099472,0.36752497,2051.0,2050.4,0.87060493]
[1770468099808,0.36752497,2050.9,2050.4,0.87060493]
[1770468100011,0.002,2051.1,2050.4,0.87060493]
[1770468100012,0.36752497,2050.8,2050.4,0.87060493]
[1770468100186,0.002,2051.1,2050.4,0.87060493]
[1770468100510,0.36752228,2051.0,2050.4,0.87060493]
[1770468100804,0.36752228,2050.9,2050.4,0.87060493]
[1770468100975,0.36752228,2050.8,2050.5,1.21921482]